{"text_format":"1","workbook":"xlsx","n_sheets":6,"sheets":["Instructions","Section 1","Section 2","Section 3","Reference List","Lists"],"not_rendered":{"charts":0,"images":0,"macros":1,"external_links":0,"defined_names":0,"comments":0,"pivot_tables":0},"unopened":[],"bounds":{"document_bytes":16777216,"sheet_cells":100000,"rows_first":2000,"rows_last":500,"rows_between":2000,"halvings":0,"cell_chars":16384,"cell_head_chars":4096},"cells_cut":0,"cells_raw":0,"read":"whole","date_system":"1900"}

{"sheet":"Instructions","index":0,"n_rows":19,"n_cols":3,"rows_kept":19,"cut":false,"hidden":false,"merged":[]}
[]
[null,null,"OMB Control Number: xxxx-xxxx"]
[null,null,"Expiration Date: xx/xx/xxxx"]
[null,null,"U.S. Environmental Protection Agency "]
[null,null,"Stratospheric Ozone Protection Program"]
[]
[null,null,"ODS One-Time Emissions Report (Sec 82.25)"]
[null,null,"Version 1.0"]
[null,null,"Last Updated: November 2024"]
[]
[null,null,"Instructions"]
[null,null,"Complete and submit an ODS One-Time Emissions Report if your company performs an activity listed under 40 CFR 82.25(a) and destroys regulated ODS. Please provide information for only one facility per reporting form. "]
[null,null,"Complete this form by filling in the data fields that are highlighted in blue.  Guidance on how to complete individual data fields are provided in comment bubbles. Use the arrows to navigate between the tabs."]
[null,null,"Report Submission: This Excel file and all supporting attachments should be submitted to EPA through the Central Data Exchange (CDX) Other Documents submission flow. Refer to EPA's website for additional information on form submission:"]
[null,null,"https://www.epa.gov/ods-phaseout/ods-recordkeeping-and-reporting"]
[]
[null,null,"This collection of information is approved by OMB under the Paperwork Reduction Act, 44 U.S.C. 3501 et seq. (OMB Control No. XXXX-XXXX). Responses to this collection of information are mandatory (40 CFR 82.25). An agency may not conduct or sponsor, and a person is not required to respond to, a collection of information unless it displays a currently valid OMB control number. The number and expiration date are displayed in the upper right corner of the form. The public reporting and recordkeeping burden for this collection of information is estimated to be X hours per response. Send comments on the Agency’s need this formation, the accuracy of the provided burden estimates and any suggested methods for minimizing respondent burden including through the use of automated collection techniques to the Director, Regulatory Support Division, U.S. Environmental Protection Agency (2821T), 1200 Pennsylvania Ave., NW, Washington, D.C. 20460.  Include the OMB control number in any correspondence.  Do not send the completed form to this address."]
[]
[null,null,"EPA Form #xxxx-xxx"]

{"sheet":"Section 1","index":1,"n_rows":17,"n_cols":5,"rows_kept":17,"cut":false,"hidden":false,"merged":[[7,2,7,3]]}
[]
[null,null,"U.S. Environmental Protection Agency"]
[null,null,"ODS One-Time Emissions Report"]
[]
[]
[]
[null,null,"Section 1: Report Identification Information "]
[null,null,"Complete all fields below for each facility that performs an activity listed under 40 CFR 82.25(a).  No fields may be left blank."]
[null,null,"Date Prepared:",null,{"$f":"IF(D9=0,1,0)","v":1}]
[null,null,"Company Name:",null,{"$f":"IF(D10=0,1,0)","v":1}]
[null,null,"Submission Type:",null,{"$f":"IF(D11=0,1,0)","v":1}]
[null,null,"Reporting Year:",null,{"$f":"IF(D12=0,1,0)","v":1}]
[null,null,"Facility Name: ",null,{"$f":"IF(D13=0,1,0)","v":1}]
[null,null,"Facility Street Address:",null,{"$f":"IF(D14=0,1,0)","v":1}]
[null,null,"Facility City:",null,1]
[null,null,"Facility State:",null,1]
[null,null,"Facility Zip Code:",null,1]

{"sheet":"Section 2","index":2,"n_rows":27,"n_cols":9,"rows_kept":27,"cut":false,"hidden":false,"merged":[[28,3,28,5],[28,8,28,9],[11,7,13,7],[17,8,17,9],[11,5,13,5],[11,6,13,6],[11,3,13,3],[24,3,24,6],[25,3,27,6],[11,4,13,4],[18,3,19,6],[20,3,22,6],[28,10,28,11],[20,8,20,9],[20,10,20,11],[22,8,22,9],[22,10,22,11],[11,8,11,9],[11,10,11,11],[17,10,17,11],[18,8,18,9],[18,10,18,11],[2,8,2,9],[2,10,2,11],[3,8,3,9],[3,10,3,11],[0,8,0,9],[0,10,0,11],[1,8,1,9],[1,10,1,11],[4,8,4,9],[4,10,4,11],[10,3,10,7],[5,8,5,9],[5,10,5,11],[6,8,6,9],[6,10,6,11],[7,8,7,9],[7,10,7,11],[8,8,8,9],[8,10,8,11],[9,8,9,9],[9,10,9,11],[10,8,10,9],[10,10,10,11],[9,3,9,6]]}
[]
[null,null,null,"U.S. Environmental Protection Agency"]
[null,null,null,{"$f":"'Section 1'!C3","v":"ODS One-Time Emissions Report"}]
[]
[null,null,null,"Facility Name:",{"$f":"IF('Section 1'!$D$13=\"\",\"\",'Section 1'!$D$13)","v":""},{"$f":"IF('Section 1'!$D$13=0,\"\",'Section 1'!$D$13)","v":""}]
[null,null,null,"Reporting Period:",{"$f":"IF('Section 1'!$D$12=\"\",\"\",'Section 1'!$D$12)","v":""},{"$f":"IF('Section 1'!$D$12=0,\"\",'Section 1'!$D$12)","v":""}]
[]
[null,null,null,"Section 2: Destruction Unit Testing"]
[]
[null,null,null,"Complete all fields below for each destruction unit. No fields may be left blank. Enter \"N/A\" for fields that are not applicable."]
[null,null,null,"If copying and pasting data into the table, please refer to the Reference List and the accompanying instructions."]
[null,null,null,null,"Controlled Substance (1) Used in Destruction Efficiency Performance Test\n82.25(e)(5)(i)","Controlled Substance (2) Used in Destruction Efficiency Performance Test\n82.25(e)(5)(i)","Surrogate Used in Destruction Efficiency Performance Test, if applicable\n82.25(e)(5)(i)","Date of Most Recent Destruction Unit Test\n82.25(e)(5)(ii)"]
[]
[]
[null,null,null,"Destruction Unit (1)",null,null,null,null,{"$f":"IF(E15=\"\",\"\",IF(COUNTBLANK(F15:H15)>0,\"ROW INCOMPLETE\",\"\"))","v":""}]
[null,null,null,"Destruction Unit (2)",null,null,null,null,{"$f":"IF(E16=\"\",\"\",IF(COUNTBLANK(F16:H16)>0,\"ROW INCOMPLETE\",\"\"))","v":""}]
[null,null,null,"Destruction Unit (3)",null,null,null,null,""]
[]
[null,null,null,"If surrogates were used in the performance test conducted to determine destruction efficiency, provide information on why the surrogate is sufficient to demonstrate the destruction efficiency for each controlled substance, consistent with requirements in 82.25(d)(6)(i). 82.25(e)(4)(i)"]
[]
[]
[null,null,null,null,null,null,null,{"$f":"IF(D21=0,1,0)","v":1}]
[]
[]
[null,null,null,"Provide the names of all applicable Federal or State regulations that may apply to the destruction process. 82.25(e)(4)(iii)"]
[]
[null,null,null,null,null,null,null,{"$f":"IF(D26=0,1,0)","v":1}]

{"sheet":"Section 3","index":3,"n_rows":17,"n_cols":12,"rows_kept":17,"cut":false,"hidden":false,"merged":[[17,3,17,5],[17,7,17,9],[17,11,17,12],[17,13,17,14],[16,6,16,10],[14,6,14,10],[15,6,15,10],[11,11,11,12],[11,13,11,14],[11,6,13,10],[8,11,8,12],[8,13,8,14],[10,3,10,9],[10,11,10,12],[10,13,10,14],[8,3,9,10],[6,13,6,14],[7,11,7,12],[7,13,7,14],[11,5,13,5],[11,4,13,4],[11,3,13,3],[0,11,0,12],[0,13,0,14],[1,11,1,12],[1,13,1,14],[2,11,2,12],[2,13,2,14],[3,11,3,12],[3,13,3,14],[4,11,4,12],[4,13,4,14],[5,11,5,12],[5,13,5,14],[6,11,6,12]]}
[]
[null,null,null,"U.S. Environmental Protection Agency"]
[null,null,null,{"$f":"'Section 1'!C3","v":"ODS One-Time Emissions Report"}]
[]
[null,null,null,"Facility Name:",{"$f":"IF('Section 1'!$D$13=\"\",\"\",'Section 1'!$D$13)","v":""},{"$f":"IF('Section 1'!$D$13=0,\"\",'Section 1'!$D$13)","v":""}]
[null,null,null,"Reporting Period:",{"$f":"IF('Section 1'!$D$12=\"\",\"\",'Section 1'!$D$12)","v":""},{"$f":"IF('Section 1'!$D$12=0,\"\",'Section 1'!$D$12)","v":""}]
[]
[null,null,null,"Section 3: Products of Incomplete Combustion of Controlled Substances"]
[null,null,null,"Complete all fields below for each controlled substance product of incomplete combustion (PIC). No fields may be left blank. As part of your submission, please also provide supporting docuemntation that contains the methods and results of any measurement or modeling studies, including the PICs for which the exhaust stream was analyzed, as well as copies of relevant scientific papers, if available, or citations of the papers, if they are not."]
[]
[null,null,null,"If copying and pasting data into the table, please refer to the Reference List and the accompanying instructions."]
[null,null,null,null,"Controlled Substance Destroyed","Controlled Substance PIC","Describe any measurements, research, or analysis performed or obtained that relate to the formation of products of incomplete combustion that are controlled substances during the destruction of controlled substances. 82.25(e)(7)"]
[]
[]
[null,null,null,"PIC (1)",null,null,null,null,null,null,null,{"$f":"IF(E15=\"\",\"\",IF(COUNTBLANK(F15:K15)>0,\"ROW INCOMPLETE\",\"\"))","v":""}]
[null,null,null,"PIC (2)",null,null,null,null,null,null,null,{"$f":"IF(E16=\"\",\"\",IF(COUNTBLANK(F16:K16)>0,\"ROW INCOMPLETE\",\"\"))","v":""}]
[null,null,null,"PIC (3)",null,null,null,null,null,null,null,{"$f":"IF(E17=\"\",\"\",IF(COUNTBLANK(F17:K17)>0,\"ROW INCOMPLETE\",\"\"))","v":""}]

{"sheet":"Reference List","index":4,"n_rows":24,"n_cols":7,"rows_kept":24,"cut":false,"hidden":false,"merged":[[5,2,5,6],[7,2,7,6],[8,2,8,6],[14,2,14,6]]}
[]
[null,null,"U.S. Environmental Protection Agency"]
[null,null,{"$f":"'Section 1'!C3","v":"ODS One-Time Emissions Report"}]
[null,null,"Reference List"]
[]
[null,null,"Chemical Name List: The table below lists the valid chemical names that may be used when entering data into Section 2 and Section 3 of this form. "]
[]
[null,null,"Chemical Name"]
[null,null,"Class I ODS"]
[null,null,"CFC-12","CFC-114","CFC-214","Halon 1211","CH3CCL3"]
[null,null,"CFC-13","CFC-115","CFC-215","Halon 1301","HBFCs"]
[null,null,"CFC-111","CFC-211","CFC-216","Halon 2402"]
[null,null,"CFC-112","CFC-212","CFC-217","CBM"]
[null,null,"CFC-113","CFC-213","Halon 1202","CCL4"]
[null,null,"Class II ODS"]
[null,null,"HCFC-21","HCFC-124a","HCFC-142b","HCFC-231","HCFC-251"]
[null,null,"HCFC-22","HCFC-131","HCFC-151","HCFC-232","HCFC-252"]
[null,null,"HCFC-31","HCFC-132b","HCFC-221","HCFC-233","HCFC-253"]
[null,null,"HCFC-121","HCFC-133a","HCFC-222","HCFC-234","HCFC-261"]
[null,null,"HCFC-122","HCFC-141","HCFC-223","HCFC-235","HCFC-262"]
[null,null,"HCFC-123","HCFC-141a","HCFC-224","HCFC-241","HCFC-271"]
[null,null,"HCFC-123a","HCFC-141b","HCFC-225ca","HCFC-242"]
[null,null,"HCFC-123b","HCFC-142","HCFC-225cb","HCFC-243"]
[null,null,"HCFC-124","HCFC-142a","HCFC-226","HCFC-244"]

{"sheet":"Lists","index":5,"n_rows":67,"n_cols":6,"rows_kept":67,"cut":false,"hidden":true,"merged":[]}
[]
[null,"Chemical Name","Submission Type","Reporting Year","Current Year","States"]
[null,"CFC-12","Original Submission",2024,{"$f":"YEAR(TODAY())","v":2024},"Alaska"]
[null,"CFC-13","Re-Submittal",2025,null,"Alabama"]
[null,"CFC-111",null,2026,null,"Arkansas"]
[null,"CFC-112",null,2027,null,"Arizona"]
[null,"CFC-113",null,2028,null,"California"]
[null,"CFC-114",null,2029,null,"Colorado"]
[null,"CFC-115",null,2030,null,"Connecticut"]
[null,"CFC-211",null,2031,null,"District of Columbia"]
[null,"CFC-212",null,2032,null,"Delaware"]
[null,"CFC-213",null,2033,null,"Florida"]
[null,"CFC-214",null,2034,null,"Georgia"]
[null,"CFC-215",null,2035,null,"Hawaii"]
[null,"CFC-216",null,null,null,"Iowa"]
[null,"CFC-217",null,null,null,"Idaho"]
[null,"Halon 1202",null,null,null,"Illinois"]
[null,"Halon 1211",null,null,null,"Indiana"]
[null,"Halon 1301",null,null,null,"Kansas"]
[null,"Halon 2402",null,null,null,"Kentucky"]
[null,"CBM",null,null,null,"Louisiana"]
[null,"CCL4",null,null,null,"Massachusetts"]
[null,"CH3CCL3",null,null,null,"Maryland"]
[null,"HBFCs",null,null,null,"Maine"]
[null,"HCFC-21",null,null,null,"Michigan"]
[null,"HCFC-22",null,null,null,"Minnesota"]
[null,"HCFC-31",null,null,null,"Missouri"]
[null,"HCFC-121",null,null,null,"Mississippi"]
[null,"HCFC-122",null,null,null,"Montana"]
[null,"HCFC-123",null,null,null,"North Carolina"]
[null,"HCFC-123a",null,null,null,"North Dakota"]
[null,"HCFC-123b",null,null,null,"Nebraska"]
[null,"HCFC-124",null,null,null,"New Hampshire"]
[null,"HCFC-124a",null,null,null,"New Jersey"]
[null,"HCFC-131",null,null,null,"New Mexico"]
[null,"HCFC-132b",null,null,null,"Nevada"]
[null,"HCFC-133a",null,null,null,"New York"]
[null,"HCFC-141",null,null,null,"Ohio"]
[null,"HCFC-141a",null,null,null,"Oklahoma"]
[null,"HCFC-141b",null,null,null,"Oregon"]
[null,"HCFC-142",null,null,null,"Pennsylvania"]
[null,"HCFC-142a",null,null,null,"Puerto Rico"]
[null,"HCFC-142b",null,null,null,"Rhode Island"]
[null,"HCFC-151",null,null,null,"South Carolina"]
[null,"HCFC-221",null,null,null,"South Dakota"]
[null,"HCFC-222",null,null,null,"Tennessee"]
[null,"HCFC-223",null,null,null,"Texas"]
[null,"HCFC-224",null,null,null,"Utah"]
[null,"HCFC-225ca",null,null,null,"Virginia"]
[null,"HCFC-225cb",null,null,null,"US Virgin Islands"]
[null,"HCFC-226",null,null,null,"Vermont"]
[null,"HCFC-231",null,null,null,"Washington"]
[null,"HCFC-232",null,null,null,"Wisconsin"]
[null,"HCFC-233",null,null,null,"West Virginia"]
[null,"HCFC-234",null,null,null,"Wyoming"]
[null,"HCFC-235"]
[null,"HCFC-241"]
[null,"HCFC-242"]
[null,"HCFC-243"]
[null,"HCFC-244"]
[null,"HCFC-251"]
[null,"HCFC-252"]
[null,"HCFC-253"]
[null,"HCFC-261"]
[null,"HCFC-262"]
[null,"HCFC-271"]
[null,"N/A"]